{"text_format":"1","workbook":"xlsx","n_sheets":4,"sheets":["Data","Menu","Cert1 Temp","Cert2 Temp"],"not_rendered":{"charts":0,"images":3,"macros":1,"external_links":0,"defined_names":1,"comments":0,"pivot_tables":0},"unopened":[],"bounds":{"document_bytes":16777216,"sheet_cells":100000,"rows_first":2000,"rows_last":500,"rows_between":2000,"halvings":0,"cell_chars":16384,"cell_head_chars":4096},"cells_cut":0,"cells_raw":0,"read":"whole","date_system":"1900"}

{"sheet":"Data","index":0,"n_rows":119,"n_cols":16,"rows_kept":119,"cut":false,"hidden":false,"merged":[[22,15,24,15],[23,8,24,8],[7,2,7,4],[8,2,8,4],[22,8,22,10],[23,9,24,9],[23,10,24,10],[23,12,24,12],[23,14,24,14],[13,8,16,10],[13,11,16,14],[23,11,24,11],[23,13,24,13],[19,0,20,6],[22,11,22,14],[2,1,2,4],[4,1,4,6],[16,1,16,3],[17,1,17,3]]}
[null,"Aanmeldingen Toetsen / Certificaten Duits in de beroepscontext - Deutsch für den Beruf Niederlande"]
[]
["School:","Example school"]
[null,null,null,null,null,null,null,null,"Dit formulier wordt gebruikt in 2 fases:"]
["Opleiding:","Example opleiding"]
[null,null,null,null,null,null,null,null,"1)  Aanmelden studenten voor TOETSEN"]
["Examenverantwoordelijke binnen de school (bijvoorbeeld toetsleider of hoofd examencommissie: naam en mailadres)",null,null,null,null,null,null,null,"2)  Aanmelden afgifte CERTIFICATEN (=resultaten vastleggen van alleen"]
[null,"Naam:",null,null,null,null,null,null,"      de toetsen Schrijven en Spreken door assessoren"]
[null,"Mailadres:"]
[]
["Geplande tijdstippen:",null," datum","tijdstip","locatie"]
[null,"Lezen/luisteren:","x","x","x"]
[null,"Spreken:","x","x","x",null,null,null,null,1,null,null,2]
[null,"Schrijven:","x","x","x",null,null,null,"1. AANMELDEN TOETSEN: Zet hieronder een kruisje voor welke toets(en) je de studenten wilt aanmelden",null,null,"2. AANMELDEN CERTIFICATEN (=resultaten vastleggen van toetsen Schrijven en Spreken (A1, B1, etc) door assessoren"]
[]
["Gecertificeerde assessoren (voor onderdeel spreekvaardigheid twee verplicht):"]
["1:","x"]
["2: ","x"]
[null,null,null,null,null,null,null,null,"Dit deel svp mailen naar:",null,null,"Dit deel svp mailen naar:"]
["Let op: onderstaande gegevens worden door ons alleen gebruikt voor het aanmelden voor toetsen en/of voor het maken van een certificaat voor de deelnemer. ",null,null,null,null,null,null,null,"*) secretariaat@duitsmbo.nl",null,null,"*) secretariaat@duitsmbo.nl"]
[null,null,null,null,null,null,null,null,"*) gudrun.mueller@goethe.de",null,null,"* ) a.plettenberg@roc-nijmegen.nl"]
["Gegevens worden niet doorgegeven aan derden."]
[null,null,null,null,null,null,null,null,"Aanmelden voor toetsen",null,null,"Aanmelden voor certificaten",null,null,null,"Invullen Sichting DiB: datum afgifte cert."]
[null,null,null,null,null,null,null,null,"LEZEN en LUISTEREN (Goethe Test pro)","SCHRIJVEN","SPREKEN","Resultaat SCHRIJVEN","Toetscode Schrijven","Resultaat SPREKEN","Toetscode Spreken"]
[null,"Voornaam","Tussenv.","Achternaam","Naamsvermelding cert.","Studentnr","Geboorteplaats","Geb.datum (dd-mm-jjjj)"]
["Voorbeeld","Wolfgang","von","Goethe","Wolfgang von Goethe",747747377,"Frankfurt ","2001-08-28","x","x","x","A1","JAM1","B1","JAM2","2024-06-21"]
[null,null,null,null,null,null,null,null,null,null,null,"A1",null,"B1"]
[null,null,null,null,null,null,null,null,null,null,null,"A2",null,"A1"]
[null,null,null,null,null,null,null,null,null,null,null,"B2",null,"A2"]
[null,null,null,null,null,null,null,null,null,null,null,"B1",null,"B2"]
[]
[]
[]
[]
[]
[]
[]
[]
[]
[]
[]
[]
[]
[]
[]
[]
[]
[]
[]
[]
[]
[]
[]
[]
[]
[]
[]
[]
[]
[]
[]
[]
[]
[]
[]
[]
[]
[]
[]
[]
[]
[]
[]
[]
[]
[]
[]
[]
[]
[]
[]
[]
[]
[]
[]
[null,null,null,null,{"$f":"CONCATENATE(B86,\" \",C86,\" \",D86)","v":"  "}]
[null,null,null,null,"  "]
[null,null,null,null,"  "]
[null,null,null,null,"  "]
[null,null,null,null,"  "]
[null,null,null,null,"  "]
[null,null,null,null,{"$f":"CONCATENATE(B92,\" \",C92,\" \",D92)","v":"  "}]
[null,null,null,null,"  "]
[null,null,null,null,"  "]
[null,null,null,null,"  "]
[null,null,null,null,"  "]
[null,null,null,null,"  "]
[null,null,null,null,"  "]
[null,null,null,null,"  "]
[null,null,null,null,"  "]
[null,null,null,null,"  "]
[null,null,null,null,"  "]
[null,null,null,null,"  "]
[null,null,null,null,"  "]
[null,null,null,null,"  "]
[null,null,null,null,"  "]
[null,null,null,null,"  "]
[null,null,null,null,"  "]
[null,null,null,null,"  "]
[null,null,null,null,"  "]
[null,null,null,null,"  "]
[null,null,null,null,"  "]
[null,null,null,null,"  "]
[null,null,null,null,"  "]
[null,null,null,null,"  "]
[null,null,null,null,"  "]
[null,null,null,null,"  "]
[null,null,null,null,"  "]
[null,null,null,null,"  "]

{"sheet":"Menu","index":1,"n_rows":0,"n_cols":0,"rows_kept":0,"cut":false,"hidden":false,"merged":[]}

{"sheet":"Cert1 Temp","index":2,"n_rows":37,"n_cols":6,"rows_kept":37,"cut":false,"hidden":true,"merged":[[36,5,37,8],[36,1,37,4]]}
[]
[]
[]
[]
[]
[]
[]
[]
[]
[]
[]
[]
[]
[]
[]
[]
[null,"Roger  Lamee"]
[null,"Voor- en achternaam - Vor- und Nachname"]
[]
[null,"14-09-2004",null,null,null,"Vught"]
[null,"Geboortedatum- Geburtsdatum",null,null,null,"Geboorteplaats- Geburtsort"]
[]
[]
[null,"Resultaat         Ergebnis"]
[]
[null,"Schrijven",null,"Schreiben",null,"B2"]
[]
[]
[]
[]
[]
[]
[]
[null,"Datum van afgifte certificaat- Ausstellungsdatum Zertifikat:"]
[null,"28-08-2025"]
[]
[null,"Namens de stichting Duits in de beroepscontext,       \nde voorzitter: Enno van der Werff",null,null,null,"Namens de Prüfungskommission van de stichting, Gudrun Müller"]

{"sheet":"Cert2 Temp","index":3,"n_rows":31,"n_cols":5,"rows_kept":31,"cut":false,"hidden":true,"merged":[[6,1,9,5],[11,1,11,5],[14,1,15,5],[16,2,16,4],[25,2,25,4]]}
[]
[]
[]
[]
[]
[]
[null,"Bewijs van deelname"]
[]
[]
[]
[]
[null,"De stichting Duits in de Beroepscontext verklaart hierbij dat"]
[]
[]
[null,"Willem van Hees"]
[]
[null,null,"Schijndel, 02-09-2005"]
[]
["   heeft deelgenomen aan het examen Duits in de beroepscontext. Dit examen "]
["     is owntwikkeld door de Stichting in samenwerking met het Goethe-Institut."]
[]
["          Resultaat- Ergebnis"]
["          Spreken-Sprechen",null,null,"A2"]
[]
[]
[null,null,"Nijmegen, 28 augustus 2025"]
[]
[]
[]
[]
["         De voorzitter: Enno van der Werff",null,null,null,"Prüfungskommission: Gudrun Müller"]